bitfinex-derivatives/quotes_BTCF0:USTF0_20240905
["timestamp","ask_amount","ask_price","bid_price","bid_amount"]
[1725549568396,0.002,56518.0,56517.0,1.63485653]
[1725549571095,0.002,56518.0,56517.0,1.58212336]
[1725549571294,0.002,56518.0,56517.0,1.67059636]
[1725549571600,0.05167113,56548.0,56528.0,0.088454]
[1725549571903,0.05167113,56548.0,56544.0,0.3608]
[1725549571904,0.176858,56545.0,56544.0,0.3608]
[1725549572396,0.088429,56545.0,56544.0,0.3608]
[1725549572593,0.176858,56545.0,56544.0,0.3608]
[1725549572791,0.088435,56541.0,56540.0,0.23]
[1725549572995,0.090435,56541.0,56540.0,0.23]
[1725549573294,0.176874,56540.0,56539.0,0.00026525]
[1725549573496,0.178874,56540.0,56539.0,0.00026525]
[1725549574493,1.309474,56540.0,56539.0,0.00026525]
[1725549574798,1.397911,56540.0,56539.0,0.00026525]
[1725549575002,1.984811,56540.0,56539.0,0.00026525]
[1725549575305,1.896374,56540.0,56539.0,0.00026525]
[1725549575494,1.90084443,56540.0,56539.0,0.00026525]
[1725549577891,0.18334443,56540.0,56539.0,0.23026525]
[1725549578089,0.09490743,56540.0,56539.0,0.23026525]
[1725549581493,0.09490743,56540.0,56539.0,0.31870325]
[1725549581696,0.002,56540.0,56539.0,0.31870325]
[1725549582305,0.002,56540.0,56539.0,1.53774125]
[1725549582495,0.00026525,56550.0,56539.0,1.53774125]
[1725549582496,0.00026525,56550.0,56543.0,0.088432]
[1725549582705,0.08868625,56550.0,56549.0,0.3608]
[1725549582903,0.09314942,56550.0,56549.0,0.3608]
[1725549584903,0.18157042,56550.0,56549.0,0.3608]
[1725549589619,0.09314942,56550.0,56549.0,0.5908]
[1725549590001,0.18157042,56550.0,56549.0,0.3608]
[1725549590301,0.088428,56546.0,56545.0,0.318428]
[1725549590509,0.088429,56545.0,56544.0,0.3608]
[1725549591006,0.090429,56545.0,56544.0,0.3608]
[1725549591210,0.088429,56545.0,56544.0,0.3608]
[1725549591813,0.176858,56545.0,56544.0,0.3608]
[1725549592012,0.088429,56545.0,56544.0,0.3608]
[1725549592902,0.176858,56545.0,56544.0,0.3608]
[1725549593108,0.088429,56545.0,56544.0,0.3608]
[1725549593804,0.176858,56545.0,56544.0,0.3608]
[1725549594513,0.495287,56545.0,56544.0,0.3608]
[1725549594904,0.495287,56545.0,56539.0,0.00026525]
[1725549594905,0.265311,56540.0,56539.0,0.00026525]
[1725549595199,0.497311,56540.0,56539.0,0.00026525]
[1725549595403,1.07958213,56540.0,56539.0,0.00026525]
[1725549595619,1.37228213,56540.0,56539.0,0.00026525]
[1725549596512,0.84168213,56540.0,56539.0,0.00026525]
[1725549596711,1.97228213,56540.0,56539.0,0.00026525]
[1725549597210,0.84168213,56540.0,56539.0,0.00026525]
[1725549597410,1.97228213,56540.0,56539.0,0.00026525]
[1725549597608,0.52324513,56540.0,56539.0,0.00026525]
[1725549597811,0.43480813,56540.0,56539.0,0.00026525]
[1725549598015,0.002,56540.0,56539.0,0.23026525]
[1725549598207,0.002,56540.0,56539.0,0.31870325]
[1725549598519,0.002,56540.0,56539.0,1.54226095]
[1725549598717,0.002,56540.0,56539.0,1.45382295]
[1725549599418,0.002,56540.0,56539.0,1.54226095]
[1725549599715,0.002,56540.0,56539.0,1.45382295]
[1725549600307,0.002,56540.0,56539.0,1.54226095]
[1725549600618,0.0689928,56542.0,56541.0,0.17687]
[1725549601009,0.0689928,56542.0,56541.0,1.30747]
[1725549601817,0.0689928,56542.0,56541.0,1.219035]
[1725549602016,0.0689928,56542.0,56541.0,0.318435]
[1725549602218,0.00026525,56550.0,56541.0,0.7606]
[1725549602421,0.08868625,56550.0,56549.0,0.7216]
[1725549602620,0.00026525,56550.0,56549.0,1.940543]
[1725549603120,0.00026525,56550.0,56549.0,0.810023]
[1725549603509,0.00026525,56550.0,56549.0,2.028966]
[1725549603823,0.00026525,56550.0,56549.0,1.940543]
[1725549604023,0.15442032,56568.0,56549.0,1.85662619]
[1725549604211,0.15442032,56568.0,56567.0,0.679195]
[1725549604417,0.15442032,56568.0,56567.0,0.68783694]
[1725549605027,0.24281332,56568.0,56567.0,0.3608]
[1725549605223,0.24281332,56568.0,56567.0,0.5908]
[1725549606116,0.15442032,56568.0,56567.0,0.679195]
[1725549607428,0.15442032,56568.0,56567.0,1.209515]
[1725549607627,0.15442032,56568.0,56567.0,0.679195]
[1725549608918,0.088393,56568.0,56567.0,0.679193]
[1725549609118,0.09276012,56576.0,56570.0,0.08839]
[1725549609119,0.088381,56576.0,56570.0,0.08839]
[1725549609324,0.6067,56591.0,56567.0,0.0012]
[1725549609325,0.088393,56568.0,56567.0,0.0012]
[1725549609621,0.265188,56566.0,56565.0,0.3608]
[1725549609824,0.265197,56564.0,56563.0,8.6e-07]
[1725549610017,0.265197,56564.0,56556.0,0.3608]
[1725549610018,0.920399,56564.0,56556.0,0.3608]
[1725549610223,0.49723,56557.0,56556.0,0.3608]
[1725549610430,0.49523,56557.0,56556.0,0.3608]
[1725549610727,0.93726,56557.0,56556.0,0.3608]
[1725549610917,1.53726,56557.0,56556.0,0.3608]
[1725549611327,0.93726,56557.0,56556.0,0.3608]
[1725549611625,0.17682,56557.0,56556.0,0.3608]
[1725549611927,0.08841,56557.0,56556.0,0.3608]
[1725549612229,0.09280246,56557.0,56556.0,0.3608]
[1725549612737,0.18121246,56557.0,56556.0,0.3608]
[1725549612930,0.09280246,56557.0,56556.0,0.3608]
[1725549613429,0.088407,56560.0,56557.0,0.08841]
[1725549613621,0.00479799,56562.0,56557.0,0.08841]
[1725549613823,0.00026525,56562.0,56561.0,0.449204]
[1725549614025,0.08866725,56562.0,56561.0,0.3608]
[1725549615120,0.08866725,56562.0,56561.0,0.5908]
[1725549615323,0.00026525,56562.0,56561.0,0.679204]
[1725549615625,0.00026525,56562.0,56561.0,0.449204]
[1725549616226,0.08866725,56562.0,56561.0,0.3608]
[1725549617522,0.17706925,56562.0,56561.0,0.3608]
[1725549617929,0.08866725,56562.0,56561.0,0.3608]
[1725549618127,0.17706925,56562.0,56561.0,0.3608]
[1725549618727,0.17682,56557.0,56556.0,0.3608]
[1725549618924,0.26723,56557.0,56556.0,0.3608]
[1725549619120,0.26723,56557.0,56556.0,1.809652]
[1725549619121,0.002,56557.0,56556.0,1.809652]
[1725549619426,0.002,56557.0,56556.0,1.986476]
[1725549619624,0.00026525,56562.0,56561.0,0.088404]
[1725549619825,0.00026525,56562.0,56561.0,0.82032076]
[1725549620030,0.00026525,56562.0,56561.0,1.898008]
[1725549620630,0.088378,56578.0,56565.0,0.406796]
[1725549620832,0.088378,56578.0,56577.0,0.088379]
[1725549621031,0.088378,56578.0,56577.0,0.809979]
[1725549621228,0.088378,56578.0,56577.0,1.039979]
[1725549621736,0.00026525,56583.0,56577.0,0.9516]
[1725549621927,0.08863525,56583.0,56582.0,0.3608]
[1725549622231,0.088385,56573.0,56572.0,0.00026525]
[1725549622432,0.090385,56573.0,56572.0,0.00026525]
[1725549623633,0.090385,56573.0,56572.0,0.36106525]
[1725549624237,0.17877,56573.0,56572.0,0.36106525]
[1725549624439,0.090385,56573.0,56572.0,0.36106525]
[1725549624832,0.090385,56573.0,56572.0,0.00026525]
[1725549624833,0.17877,56573.0,56572.0,0.00026525]
[1725549625135,0.18314377,56573.0,56572.0,0.00026525]
[1725549626033,0.09475877,56573.0,56572.0,0.00026525]
[1725549626338,0.18314377,56573.0,56572.0,0.00026525]
[1725549627037,1.40180877,56573.0,56572.0,0.00026525]
[1725549627238,1.13665377,56573.0,56558.0,0.3608]
[1725549627424,0.088407,56559.0,56558.0,0.3608]
[1725549627630,0.090407,56559.0,56558.0,0.3608]
[1725549627930,0.002,56559.0,56558.0,0.449209]
[1725549628737,0.090407,56559.0,56558.0,0.3608]
[1725549628939,0.178814,56559.0,56558.0,0.3608]
[1725549629134,0.090407,56559.0,56558.0,0.3608]
[1725549629336,0.090407,56559.0,56558.0,0.5908]
[1725549629836,0.178814,56559.0,56558.0,0.3608]
[1725549630836,0.178814,56559.0,56553.0,0.00026525]
[1725549630837,0.17683,56554.0,56553.0,0.00026525]
[1725549631040,0.17683,56554.0,56553.0,2.5e-07]
[1725549631041,0.497245,56554.0,56553.0,2.5e-07]
[1725549631344,1.627725,56554.0,56553.0,2.5e-07]
[1725549631937,0.53048,56553.0,56541.0,0.3608]
[1725549632239,0.176886,56536.0,56535.0,0.3608]
[1725549632441,0.090443,56536.0,56528.0,0.28388787]
[1725549632744,0.090443,56536.0,56533.0,0.3608]
[1725549632745,0.088446,56534.0,56533.0,0.3608]
[1725549633444,0.002,56536.0,56528.0,0.00026525]
[1725549633445,0.088454,56529.0,56528.0,0.00026525]
[1725549633645,0.090454,56529.0,56528.0,0.00026525]
[1725549636352,0.002,56529.0,56528.0,0.08872125]
[1725549636728,0.002,56529.0,56528.0,0.00026525]
[1725549636729,0.090454,56529.0,56528.0,0.00026525]
[1725549639640,0.178908,56529.0,56528.0,0.36106525]
[1725549640337,0.178908,56529.0,56528.0,0.00026525]
[1725549640736,0.408908,56529.0,56528.0,0.00026525]
[1725549640935,0.497362,56529.0,56528.0,0.00026525]
[1725549641634,0.267362,56529.0,56528.0,0.00026525]
[1725549642639,0.178908,56529.0,56528.0,0.00026525]
[1725549643040,0.090454,56529.0,56528.0,0.23026525]
[1725549643237,0.090454,56529.0,56528.0,0.00026525]
[1725549645839,0.178908,56529.0,56528.0,0.00026525]
[1725549646148,0.178908,56529.0,56528.0,0.36106525]
[1725549646851,0.178908,56529.0,56528.0,0.00026525]
[1725549647050,0.267362,56529.0,56528.0,0.00026525]
[1725549647552,0.267362,56529.0,56528.0,0.36106525]
[1725549647553,0.178908,56529.0,56528.0,0.36106525]
[1725549648052,0.178908,56529.0,56528.0,0.00026525]
[1725549649354,0.628162,56529.0,56528.0,0.00026525]
[1725549649550,1.758882,56529.0,56528.0,0.00026525]
[1725549649745,0.088476,56515.0,56514.0,0.3828]
[1725549649945,0.088476,56515.0,56514.0,0.471278]
[1725549649946,0.002,56515.0,56514.0,0.471278]
[1725549650152,0.002,56515.0,56514.0,1.090596]
[1725549650360,0.002,56515.0,56514.0,1.779074]
[1725549650556,0.088448,56533.0,56528.0,0.088454]
[1725549650851,0.3608,56534.0,56528.0,0.3608]
[1725549651060,0.088454,56529.0,56528.0,0.3608]
[1725549651852,0.08845,56532.0,56531.0,0.088449]
[1725549652961,0.088445,56535.0,56534.0,0.088445]
[1725549654167,0.00026525,56536.0,56535.0,0.088445]
[1725549654662,0.088446,56534.0,56533.0,0.3608]
[1725549655256,0.088446,56534.0,56533.0,0.449248]
[1725549655455,0.002,56534.0,56533.0,0.3608]
[1725549655663,0.002,56534.0,56533.0,0.449248]
[1725549656558,0.088453,56530.0,56529.0,0.3608]
[1725549656756,0.090453,56530.0,56529.0,0.3608]
[1725549658265,0.090453,56530.0,56529.0,0.449254]
[1725549658458,0.090453,56530.0,56529.0,0.50194187]
[1725549658653,0.090453,56530.0,56529.0,0.449254]
[1725549659162,0.090453,56530.0,56529.0,0.50194187]
[1725549659366,0.090453,56530.0,56529.0,0.449254]
[1725549660161,0.178906,56530.0,56529.0,0.3608]
[1725549661353,0.178906,56530.0,56529.0,0.41370257]
[1725549662358,0.178906,56530.0,56529.0,0.3608]
[1725549662784,0.002,56530.0,56529.0,0.449254]
[1725549662958,0.002,56530.0,56529.0,0.626162]
[1725549663165,0.002,56530.0,56529.0,0.76092183]
[1725549663366,0.002,56530.0,56529.0,1.80314783]
[1725549663561,0.002,56530.0,56529.0,1.90858799]
[1725549663875,0.002,56530.0,56529.0,1.80766663]
[1725549664170,0.002,56530.0,56529.0,1.89612063]
[1725549665371,0.00026525,56536.0,56535.0,0.265335]
[1725549665667,0.05170492,56545.0,56535.0,0.265335]
[1725549665668,0.05170492,56545.0,56535.0,1.415049]
[1725549665857,0.05170492,56545.0,56544.0,0.717662]
[1725549666256,0.06894894,56548.0,56547.0,0.176852]
[1725549666470,0.06894894,56548.0,56547.0,0.717652]
[1725549666662,0.06894894,56548.0,56547.0,1.848172]
[1725549666865,0.08645145,56553.0,56552.0,0.088418]
[1725549667065,0.08645145,56553.0,56552.0,0.629218]
[1725549667366,0.08645145,56553.0,56552.0,1.759698]
[1725549667869,4.5e-07,56553.0,56552.0,1.848116]
[1725549668075,0.12066065,56566.0,56565.0,0.176796]
[1725549668262,0.12066065,56566.0,56565.0,1.73740877]
[1725549668571,0.12066065,56566.0,56565.0,2.17937077]
[1725549668769,0.12066065,56566.0,56565.0,3.67937077]
[1725549669564,0.03128765,56566.0,56565.0,2.26776877]
[1725549669765,0.13816314,56571.0,56570.0,0.08839]
[1725549669960,0.13816314,56571.0,56570.0,0.67919]
[1725549670364,0.00026525,56571.0,56570.0,0.67919]
[1725549670766,0.00026525,56571.0,56570.0,1.80951]
[1725549672071,0.00026525,56571.0,56570.0,0.67919]
[1725549673271,0.00026525,56571.0,56570.0,1.8979]
[1725549674878,0.00026525,56571.0,56570.0,0.67919]
[1725549675875,0.09365325,56571.0,56570.0,0.3618]
[1725549676075,0.09365325,56571.0,56570.0,0.5918]
[1725549676675,0.09365325,56571.0,56570.0,0.68019]
[1725549676981,0.09365325,56571.0,56570.0,0.5918]
[1725549677774,0.09365325,56571.0,56570.0,0.3618]
[1725549678178,0.09365325,56571.0,56570.0,0.001]
[1725549678179,0.18204125,56571.0,56570.0,0.001]
[1725549678474,0.176792,56566.0,56565.0,0.3608]
[1725549678678,0.406792,56566.0,56565.0,0.3608]
[1725549678879,0.407792,56566.0,56565.0,0.3608]
[1725549679066,0.089396,56566.0,56565.0,0.3608]
[1725549679268,0.002,56566.0,56565.0,0.449198]
[1725549679482,0.001,56566.0,56565.0,0.449198]
[1725549680165,0.001,56566.0,56565.0,0.979558]
[1725549680366,0.001,56566.0,56565.0,1.667956]
[1725549680576,0.00526525,56571.0,56570.0,0.08839]
[1725549680771,0.00526525,56571.0,56570.0,0.67919]
[1725549681377,0.00526525,56571.0,56570.0,1.20951]
[1725549681577,0.00026525,56571.0,56570.0,1.20951]
[1725549681765,0.00026525,56571.0,56570.0,0.68360551]
[1725549682476,0.09565325,56571.0,56570.0,0.36621551]
[1725549682775,0.09565325,56571.0,56570.0,0.3618]
[1725549682776,0.18404125,56571.0,56570.0,0.3618]
[1725549682970,0.18404125,56571.0,56565.0,0.36520929]
[1725549682971,0.088396,56566.0,56565.0,0.36520929]
[1725549683270,0.002,56566.0,56565.0,0.36520929]
[1725549683474,0.002,56566.0,56565.0,0.68360729]
[1725549684371,0.002,56566.0,56565.0,0.3608]
[1725549684372,0.090396,56566.0,56565.0,0.3608]
[1725549684572,0.178792,56566.0,56565.0,0.3608]
[1725549684971,0.177792,56566.0,56565.0,0.3608]
[1725549685371,0.089396,56566.0,56565.0,0.3608]
[1725549685569,0.098396,56566.0,56565.0,0.3618]
[1725549685965,0.097396,56566.0,56565.0,0.3618]
[1725549687473,0.185792,56566.0,56565.0,0.3618]
[1725549687671,0.185792,56566.0,56560.0,0.00026525]
[1725549687672,0.176808,56561.0,56560.0,0.00026525]
[1725549687872,0.178808,56561.0,56560.0,0.00026525]
[1725549688068,0.089404,56561.0,56560.0,0.00026525]
[1725549688774,0.088404,56561.0,56560.0,0.00026525]
[1725549690080,0.098404,56561.0,56560.0,0.00126525]
[1725549691777,0.088404,56561.0,56560.0,0.00026525]
[1725549691969,0.101404,56561.0,56560.0,0.00126525]
[1725549692367,0.088404,56561.0,56560.0,0.00026525]
[1725549692671,0.101404,56561.0,56560.0,0.00126525]
[1725549693067,0.101404,56561.0,56560.0,0.00026525]
[1725549693068,0.537608,56561.0,56560.0,0.00026525]
[1725549693270,0.537608,56561.0,56550.0,0.3608]
[1725549693271,1.822604,56561.0,56550.0,0.3608]
[1725549693468,0.17884,56551.0,56550.0,0.3608]
[1725549693882,0.09042,56551.0,56550.0,0.449221]
[1725549694683,0.09042,56551.0,56550.0,0.50201906]
[1725549694978,0.08842,56551.0,56550.0,0.449221]
[1725549695578,0.10142,56551.0,56550.0,0.450221]
[1725549696281,0.18984,56551.0,56550.0,0.3618]
[1725549696583,0.27826,56551.0,56550.0,0.001]
[1725549696782,1.40874,56551.0,56550.0,0.001]
[1725549696982,0.175856,56546.0,56545.0,0.00026525]
[1725549697185,0.857084,56546.0,56545.0,0.00026525]
[1725549697686,0.857084,56546.0,56533.0,0.07011542]
[1725549697687,0.088446,56534.0,56533.0,0.05724784]
[1725549697879,0.090446,56534.0,56533.0,0.00442425]
[1725549698076,0.002,56534.0,56533.0,0.088448]
[1725549698273,0.002,56534.0,56533.0,0.14121938]
[1725549698579,0.088448,56533.0,56532.0,0.3608]
[1725549698779,0.088454,56529.0,56528.0,0.05303663]
[1725549699080,0.087454,56529.0,56528.0,0.00026525]
[1725549699787,0.090449,56533.0,56528.0,0.08872125]
[1725549699977,0.002,56533.0,56532.0,0.088449]
[1725549701781,0.090448,56533.0,56532.0,0.088449]
[1725549701977,0.002,56533.0,56532.0,0.088449]
[1725549702391,0.090448,56533.0,56532.0,0.088449]
[1725549702584,0.104448,56533.0,56532.0,0.088449]
[1725549703278,0.104448,56533.0,56532.0,0.089449]
[1725549703792,0.090448,56533.0,56532.0,0.088449]
[1725549703979,0.104448,56533.0,56532.0,0.089449]
[1725549705374,0.016,56533.0,56532.0,0.089449]
[1725549705784,0.016,56533.0,56532.0,0.538698]
[1725549706083,0.01446925,56533.0,56532.0,2.062327]
[1725549706273,0.01446925,56533.0,56532.0,2.11509838]
[1725549706479,0.01446925,56533.0,56532.0,1.373878]
[1725549706681,0.01446925,56533.0,56532.0,0.843198]
[1725549706876,0.01446925,56533.0,56532.0,0.450249]
[1725549707076,0.014,56533.0,56532.0,0.450249]
[1725549707286,0.088446,56535.0,56534.0,0.088446]
[1725549707584,0.176896,56533.0,56532.0,0.001]
[1725549707791,0.178896,56533.0,56532.0,0.001]
[1725549708189,0.090448,56533.0,56532.0,0.001]
[1725549708995,0.090448,56533.0,56528.0,0.00465308]
[1725549708996,0.088454,56529.0,56528.0,0.09310808]
[1725549709294,0.089454,56529.0,56528.0,0.09310808]
[1725549709690,0.407908,56529.0,56528.0,0.00026525]
[1725549709994,1.626082,56529.0,56528.0,0.00026525]
[1725549710183,1.537628,56529.0,56528.0,0.00026525]
[1725549710381,0.176924,56524.0,56523.0,0.03253075]
[1725549710586,0.681262,56524.0,56523.0,0.03253075]
[1725549710791,0.680262,56524.0,56523.0,0.03253075]
[1725549710992,0.768724,56524.0,56523.0,0.03253075]
[1725549711291,0.088481,56512.0,56511.0,0.3608]
[1725549711482,0.3648,56512.0,56507.0,0.05277138]
[1725549711686,0.088484,56510.0,56509.0,0.00132]
[1725549711885,0.088484,56510.0,56506.0,0.00026525]
[1725549711886,0.176978,56507.0,56506.0,0.00026525]
[1725549712196,0.771778,56507.0,56506.0,0.00026525]
[1725549712378,0.088504,56497.0,56496.0,0.3281]
[1725549712578,0.004,56497.0,56491.0,0.088512]
[1725549712778,0.004,56497.0,56491.0,0.00440501]
[1725549712779,0.003,56492.0,56491.0,0.00440501]
[1725549712990,0.004,56497.0,56494.0,0.088508]
[1725549713185,0.004,56497.0,56495.0,0.088507]
[1725549713390,0.092505,56497.0,56492.0,0.23906607]
[1725549713578,0.002,56493.0,56492.0,0.23906607]
[1725549713780,0.002,56493.0,56492.0,0.32757807]
[1725549713983,0.001,56493.0,56492.0,0.32757807]
[1725549714387,0.001,56493.0,56490.0,0.00017834]
[1725549714694,0.002,56491.0,56490.0,0.00921698]
[1725549714990,0.002,56491.0,56490.0,0.09773198]
[1725549715383,0.002,56491.0,56490.0,0.00517834]
[1725549715384,0.088514,56491.0,56490.0,0.00517834]
[1725549715584,0.177028,56491.0,56490.0,0.00517834]
[1725549715789,0.177028,56491.0,56475.0,0.3281]
[1725549715790,0.088537,56476.0,56475.0,0.3281]
[1725549715985,0.088541,56474.0,56469.0,0.2911]
[1725549716180,0.088544,56472.0,56468.0,0.3608]
[1725549716585,0.088544,56472.0,56469.0,0.088548]
[1725549716789,0.004,56476.0,56470.0,0.088546]
[1725549716790,0.0042655,56476.0,56470.0,0.088546]
[1725549717082,0.0928025,56476.0,56473.0,0.3608]
[1725549717281,0.088539,56475.0,56473.0,0.3608]
[1725549717486,0.0042655,56476.0,56471.0,0.088545]
[1725549717694,0.004,56472.0,56471.0,0.088545]
[1725549718396,0.0042655,56476.0,56471.0,0.088545]
[1725549718397,0.0002655,56476.0,56471.0,0.088545]
[1725549718588,0.0002655,56476.0,56475.0,0.088539]
[1725549719594,0.0012655,56476.0,56475.0,0.088539]
[1725549720290,0.0002655,56476.0,56475.0,0.088539]
[1725549720795,0.0002655,56476.0,56471.0,0.092544]
[1725549720987,0.3600035,56475.0,56474.0,0.08854]
[1725549721189,0.0002655,56476.0,56475.0,0.088539]
[1725549721495,0.0002655,56476.0,56472.0,0.3608]
[1725549721696,0.002,56473.0,56471.0,0.00841649]
[1725549721898,0.090543,56472.0,56471.0,0.00841649]
[1725549722195,0.088543,56472.0,56471.0,0.00841649]
[1725549722397,0.537886,56472.0,56471.0,0.004]
[1725549722694,0.537886,56472.0,56454.0,0.3281]
[1725549722695,0.088556,56464.0,56454.0,0.3281]
[1725549722895,0.088556,56464.0,56447.0,0.088582]
[1725549722896,0.3648,56455.0,56447.0,0.088582]
[1725549723084,0.3648,56455.0,56454.0,0.088572]
[1725549723701,0.3648,56455.0,56451.0,0.00899621]
[1725549723893,0.3648,56455.0,56447.0,0.088582]
[1725549723894,0.004,56452.0,56447.0,0.088582]
[1725549724092,0.004,56448.0,56447.0,0.088582]
[1725549724287,0.004,56452.0,56448.0,0.088581]
[1725549724496,0.088577,56451.0,56448.0,0.088581]
[1725549724691,0.088579,56450.0,56448.0,0.088581]
[1725549724892,0.004,56452.0,56449.0,0.088579]
[1725549725098,0.004,56452.0,56451.0,0.088576]
[1725549725600,0.092576,56452.0,56448.0,0.68844884]
[1725549725798,0.004,56449.0,56448.0,0.68844884]
[1725549726495,0.004,56449.0,56437.0,0.6889]
[1725549726496,0.088587,56444.0,56437.0,0.6889]
[1725549726695,0.08859,56443.0,56439.0,0.088594]
[1725549726997,0.3608,56444.0,56439.0,0.088594]
[1725549727399,0.3608,56444.0,56437.0,0.33716978]
[1725549727400,0.449388,56444.0,56440.0,0.088594]
[1725549727904,0.088594,56440.0,56435.0,0.23439909]
[1725549728090,0.4534,56436.0,56435.0,0.00439909]
[1725549728293,0.088621,56423.0,56420.0,0.14139638]
[1725549728492,0.5908,56425.0,56419.0,0.3282888]
[1725549728697,0.5908,56425.0,56419.0,0.0001888]
[1725549728698,0.453425,56420.0,56419.0,0.0001888]
[1725549728891,0.453425,56420.0,56419.0,0.00861458]
[1725549728892,0.449425,56420.0,56419.0,0.00861458]
[1725549729098,0.449425,56420.0,56419.0,0.0041888]
[1725549729291,0.449425,56420.0,56419.0,0.004]
[1725549729498,0.004,56452.0,56419.0,0.004]
[1725549729701,0.09275789,56526.0,56500.0,0.00013564]
[1725549729902,0.23,56534.0,56514.0,0.23]
[1725549730195,0.5308,56522.0,56511.0,0.3608]
[1725549730398,0.5308,56522.0,56507.0,0.088488]
[1725549730399,0.23,56525.0,56521.0,0.3608]
[1725549730605,0.3608,56535.0,56507.0,0.00901129]
[1725549730606,0.00026548,56529.0,56524.0,0.3608]
[1725549730996,0.00026548,56529.0,56520.0,0.3608]
[1725549730997,0.23,56525.0,56520.0,0.3608]
[1725549731193,0.53076,56524.0,56520.0,0.3608]
[1725549731393,0.23,56521.0,56517.0,0.36106548]
[1725549731596,0.002,56518.0,56517.0,0.36106548]
[1725549731996,1.1328,56518.0,56517.0,0.36106548]
[1725549732398,0.002,56518.0,56517.0,0.72186548]
[1725549732895,1.1328,56518.0,56517.0,0.72186548]
[1725549733705,1.1468,56518.0,56517.0,0.72186548]
[1725549734204,1.1468,56518.0,56491.0,0.088513]
[1725549734205,1.1328,56518.0,56515.0,0.3608]
[1725549734405,0.272,56516.0,56515.0,0.3608]
[1725549734707,0.360474,56516.0,56515.0,0.3608]
[1725549734909,1.491314,56516.0,56515.0,0.3608]
[1725549735907,0.272,56516.0,56515.0,0.3608]
[1725549736098,0.002,56516.0,56515.0,0.3608]
[1725549736299,0.002,56516.0,56515.0,1.49164]
[1725549737105,0.016,56516.0,56515.0,1.49164]
[1725549737307,0.026,56516.0,56515.0,0.3618]
[1725549737611,0.014,56516.0,56515.0,0.3618]
[1725549738005,0.004,56516.0,56515.0,0.3608]
[1725549738207,0.005,56516.0,56515.0,0.3608]
[1725549738603,0.00226548,56521.0,56515.0,0.3608]
[1725549738804,0.00226548,56521.0,56520.0,0.3608]
[1725549739416,1.13306548,56521.0,56520.0,0.3608]
[1725549739809,1.13106548,56521.0,56520.0,0.3608]
[1725549740210,1.14506548,56521.0,56520.0,0.3608]
[1725549740808,1.13206548,56521.0,56520.0,0.3608]
[1725549741002,1.14606548,56521.0,56520.0,0.3608]
[1725549741203,0.01526548,56521.0,56520.0,0.3608]
[1725549741419,0.088466,56522.0,56520.0,0.3608]
[1725549741718,0.001,56521.0,56520.0,0.3618]
[1725549741909,0.3049,56527.0,56520.0,0.3618]
[1725549742220,0.3141,56547.0,56526.0,0.3608]
[1725549742221,0.27,56544.0,56526.0,0.3608]
[1725549742512,0.3141,56547.0,56543.0,0.3608]
[1725549742513,0.3082,56546.0,56543.0,0.3608]
[1725549743214,0.088429,56545.0,56543.0,0.3608]
[1725549743910,0.102431,56544.0,56543.0,0.3608]
[1725549744107,0.014,56544.0,56543.0,0.3608]
[1725549744314,0.3082,56546.0,56543.0,0.3608]
[1725549744513,0.014,56545.0,56543.0,0.3608]
[1725549744818,0.088431,56544.0,56543.0,0.3608]
[1725549745114,0.014,56545.0,56543.0,0.3608]
[1725549745309,0.02,56545.0,56543.0,0.3618]
[1725549745915,0.088431,56544.0,56543.0,0.3618]
[1725549746308,0.372431,56544.0,56543.0,0.3628]
[1725549746709,0.102431,56544.0,56543.0,0.3628]
[1725549746919,0.088431,56544.0,56543.0,0.3608]
[1725549747107,0.088431,56544.0,56543.0,0.3628]
[1725549747108,0.094431,56544.0,56543.0,0.3628]
[1725549747829,0.094431,56544.0,56543.0,0.3618]
[1725549747830,0.088431,56544.0,56543.0,0.3618]
[1725549748121,0.094431,56544.0,56543.0,0.3618]
[1725549748315,0.108431,56544.0,56543.0,0.3628]
[1725549748819,0.196862,56544.0,56543.0,0.3628]
[1725549749619,1.327422,56544.0,56543.0,0.3628]
[1725549749819,0.638991,56544.0,56543.0,0.3628]
[1725549750120,0.638991,56544.0,56543.0,0.451232]
[1725549750121,0.02,56544.0,56543.0,0.451232]
[1725549750323,0.006,56544.0,56543.0,0.450232]
[1725549750621,0.094431,56544.0,56543.0,0.3628]
[1725549751117,0.006,56544.0,56543.0,0.451232]
[1725549751325,0.3105,56562.0,56549.0,0.088423]
[1725549751520,0.088415,56554.0,56549.0,0.449223]
[1725549751722,0.088417,56553.0,56549.0,0.449223]
[1725549752110,0.088418,56552.0,56549.0,0.449223]
[1725549753010,0.088421,56551.0,56549.0,0.449223]
[1725549753221,0.27,56560.0,56549.0,0.3608]
[1725549753222,0.08868648,56550.0,56549.0,0.3608]
[1725549753622,0.09068648,56550.0,56549.0,0.3618]
[1725549754016,0.36068648,56550.0,56549.0,0.3618]
[1725549754221,0.45910748,56550.0,56549.0,0.3628]
[1725549756327,0.10068648,56550.0,56549.0,0.3628]
[1725549756622,0.18910748,56550.0,56549.0,0.3628]
[1725549756817,0.18810748,56550.0,56549.0,0.3628]
[1725549757511,0.18610748,56550.0,56549.0,0.3618]
[1725549757814,0.18810748,56550.0,56549.0,0.3628]
[1725549758014,0.17910748,56550.0,56549.0,0.3618]
[1725549758211,0.54552848,56550.0,56549.0,0.3628]
[1725549758432,0.45710748,56550.0,56549.0,0.3628]
[1725549759623,0.54352848,56550.0,56549.0,0.3618]
[1725549759824,0.54552848,56550.0,56549.0,0.3628]
[1725549760029,0.45810748,56550.0,56549.0,0.3628]
[1725549761537,0.45610748,56550.0,56549.0,0.3628]
[1725549762728,0.45610748,56550.0,56541.0,0.05234614]
[1725549762729,2.13138548,56550.0,56541.0,0.05234614]
[1725549763031,0.088449,56532.0,56531.0,0.05208066]
[1725549763229,0.088453,56530.0,56529.0,0.3608]